bitfinex/quotes_ETHUSD_20260313
["timestamp","ask_amount","ask_price","bid_price","bid_amount"]
[1773360565037,0.002,2077.6,2077.0,0.49786567]
[1773360566411,0.46590947,2077.6,2076.9,1.20371707]
[1773360566717,1.6672789,2077.5,2076.9,1.25186575]
[1773360567111,0.46390947,2077.4,2076.8,0.001]
[1773360567313,0.50002404,2077.4,2076.8,0.001]
[1773360568552,2.32196761,2077.3,2076.8,0.001]
[1773360568757,0.46390947,2077.0,2076.8,0.001]
[1773360569050,0.46390947,2077.0,2076.5,0.001]
[1773360570728,1.20371707,2076.9,2076.5,0.001]
[1773360570929,0.46390947,2076.8,2076.5,0.001]
[1773360571754,0.46390947,2076.6,2075.6,1.20443303]
[1773360571961,0.46390947,2076.6,2075.7,1.20440551]
[1773360572256,0.46390947,2076.6,2075.6,1.20444003]
[1773360572560,0.46390947,2076.6,2075.9,0.001]
[1773360572869,1.66784282,2076.6,2076.0,1.70210459]
[1773360573165,1.20393335,2076.6,2076.1,0.49786567]
[1773360573331,0.46390947,2076.8,2076.1,0.49786567]
[1773360573527,1.2037424,2076.9,2076.2,0.49886567]
[1773360573723,1.66759411,2077.0,2076.3,0.49886567]
[1773360573981,1.20368464,2077.0,2076.1,0.001]
[1773360574135,0.46390947,2076.9,2076.1,0.001]
[1773360574566,0.46390947,2076.9,2076.2,0.001]
[1773360574860,0.46390947,2076.9,2076.1,0.001]
[1773360575158,0.46390947,2076.7,2076.1,0.001]
[1773360575653,4.81510015,2076.9,2076.0,1.70210459]
[1773360575654,1.20373976,2076.9,2076.2,0.49886567]
[1773360575857,0.5120583,2077.0,2076.2,0.49786567]
[1773360576060,0.01204028,2076.9,2076.3,0.49886567]
[1773360576352,0.01204028,2076.9,2076.3,0.49786567]
[1773360576655,0.01204028,2076.9,2076.4,0.49886567]
[1773360576853,0.01204028,2076.9,2076.4,0.49786567]
[1773360577156,0.01204028,2076.9,2076.6,0.49786567]
[1773360577337,0.01204028,2076.9,2076.5,1.20394895]
[1773360577537,0.01204028,2076.9,2076.6,0.001]
[1773360578230,0.01204028,2076.9,2076.7,0.001]
[1773360578428,0.01204028,2076.9,2076.5,1.20394895]
[1773360578628,0.01204028,2076.9,2076.6,0.04815563]
[1773360579466,0.01204028,2076.9,2076.7,1.203833]
[1773360579831,0.01204028,2076.9,2076.6,1.25200217]
[1773360580032,0.01204028,2076.9,2076.7,0.001]
[1773360580535,0.05014883,2077.2,2076.8,0.001]
[1773360580742,1.71760225,2077.2,2076.8,0.001]
[1773360580942,1.71760225,2077.2,2076.6,1.20384654]
[1773360581168,1.71760225,2077.2,2076.7,0.001]
[1773360581469,1.71764803,2077.2,2076.7,0.001]
[1773360581968,0.5140583,2077.2,2076.7,0.001]
[1773360582145,0.5140583,2077.2,2076.6,1.20384654]
[1773360582146,0.05014883,2077.2,2076.8,0.49886567]
[1773360582348,0.05014883,2077.2,2076.8,0.49786567]
[1773360582550,0.002,2077.2,2076.9,0.001]
[1773360582967,0.002,2077.2,2077.0,0.001]
[1773360583279,0.002,2077.2,2076.9,0.001]
[1773360583478,0.002,2077.2,2076.9,1.20471707]
[1773360584473,0.002,2077.2,2077.0,0.45111327]
[1773360584688,0.002,2077.2,2077.0,0.45211327]
[1773360584851,0.002,2077.2,2076.9,1.20471707]
[1773360585588,0.01403727,2077.4,2077.0,0.45211327]
[1773360585989,0.01403727,2077.4,2077.1,0.45211327]
[1773360586286,1.20531951,2077.6,2077.1,0.45111327]
[1773360586462,0.49411065,2077.5,2077.1,0.001]
[1773360587069,0.04814883,2077.4,2077.1,0.001]
[1773360587590,0.04814883,2077.4,2077.2,0.001]
[1773360587791,0.04814883,2077.5,2077.0,0.45211327]
[1773360588083,0.49411065,2077.5,2077.1,0.001]
[1773360588286,0.54225948,2077.5,2077.0,0.001]
[1773360589490,0.04814883,2077.5,2077.1,0.001]
[1773360589690,1.25157551,2077.5,2077.1,0.001]
[1773360590001,1.20337649,2077.5,2077.2,0.001]
[1773360590202,0.04814883,2077.4,2077.2,0.001]
[1773360590710,0.04814883,2077.5,2077.2,0.001]
[1773360591002,0.002,2077.4,2077.0,1.20363278]
[1773360591164,0.002,2077.4,2077.1,0.001]
[1773360591666,1.20542736,2077.4,2077.1,0.001]
[1773360592286,0.002,2077.4,2077.1,0.45720764]
[1773360593193,0.002,2077.4,2077.2,0.001]
[1773360593391,0.002,2077.4,2077.2,0.45820764]
[1773360593970,0.002,2077.4,2077.2,0.001]
[1773360594189,0.002,2077.4,2077.3,0.001]
[1773360594390,0.002,2077.4,2077.0,1.20362286]
[1773360594685,0.002,2077.6,2077.1,0.45820764]
[1773360595185,0.002,2077.6,2077.2,0.001]
[1773360595385,0.002,2077.6,2077.3,0.45720764]
[1773360595582,0.002,2077.6,2077.3,0.45820764]
[1773360596265,0.002,2077.8,2077.5,0.45720764]
[1773360598031,0.002,2078.1,2077.5,0.45720764]
[1773360598174,0.002,2078.1,2077.9,0.45720764]
[1773360599583,1.21488195,2078.4,2077.9,0.45720764]
[1773360599779,1.21488195,2078.4,2077.8,1.66040332]
[1773360600188,1.21488195,2078.4,2077.8,1.6603959]
[1773360600585,1.21488195,2078.4,2077.8,1.20318826]
[1773360600787,0.01203125,2078.4,2077.9,0.45720764]
[1773360601300,1.21488811,2078.4,2077.9,0.45720764]
[1773360601499,1.69609918,2078.4,2077.7,0.45720764]
[1773360601705,0.4812068,2078.3,2077.7,0.45720764]
[1773360602075,1.21491262,2078.4,2077.7,0.45720764]
[1773360602478,1.21488078,2078.4,2077.9,0.45720764]
[1773360603085,0.01203125,2078.4,2077.9,0.45720764]
[1773360604085,1.20267687,2078.7,2077.9,0.45720764]
[1773360604403,5.34370994,2078.9,2077.9,0.45720764]
[1773360604404,1.68386703,2078.8,2078.0,1.20307988]
[1773360604576,0.002,2078.4,2078.1,0.45720764]
[1773360604781,0.4812068,2078.8,2078.1,0.45720764]
[1773360605105,0.002,2078.7,2078.1,0.45720764]
[1773360605294,0.002,2078.7,2078.3,0.45720764]
[1773360605495,0.03607571,2079.0,2078.3,0.45720764]
[1773360605811,1.71979628,2079.0,2078.2,0.45720764]
[1773360606007,0.03607571,2079.0,2078.2,0.45720764]
[1773360606625,0.03607571,2079.0,2078.4,0.45720764]
[1773360607885,1.23857963,2079.0,2078.4,0.45720764]
[1773360608097,0.03607571,2079.0,2078.4,0.45720764]
[1773360608595,0.03607571,2079.0,2078.5,1.65999811]
[1773360609212,0.4812068,2079.1,2078.5,1.6239224]
[1773360609592,0.4812068,2079.1,2078.6,0.45720764]
[1773360610414,0.4812068,2079.0,2078.4,0.04811393]
[1773360610711,0.4812068,2078.8,2078.2,1.20291767]
[1773360612098,0.4812068,2078.8,2078.1,1.66018515]
[1773360612293,0.4812068,2078.8,2078.0,1.20305398]
[1773360612702,0.4812068,2078.6,2078.0,1.20305398]
[1773360612908,0.4812068,2078.6,2077.9,0.01203125]
[1773360613428,0.4812068,2078.6,2077.9,1.21516411]
[1773360613635,0.4812068,2078.6,2077.9,0.01203125]
[1773360613926,0.4812068,2078.7,2078.0,2.77604132]
[1773360614103,0.4812068,2078.7,2078.0,0.45720764]
[1773360614691,1.68392314,2078.7,2078.1,1.20302199]
[1773360615412,0.4812068,2078.6,2078.1,1.20302199]
[1773360616409,0.46918457,2078.6,2078.1,1.20302199]
[1773360616609,0.45715933,2078.6,2078.1,1.20302199]
[1773360616809,0.45715933,2078.6,2078.4,0.01202824]
[1773360617423,0.4812068,2078.6,2078.4,0.01202824]
[1773360617622,1.20467494,2078.7,2078.2,0.001]
[1773360618117,1.68588174,2078.7,2078.2,0.001]
[1773360618522,0.4812068,2078.6,2078.2,0.001]
[1773360618892,1.20467494,2078.7,2078.2,0.001]
[1773360618893,0.002,2078.7,2078.2,0.001]
[1773360619095,0.002,2078.7,2078.2,0.45820764]
[1773360620827,0.002,2078.7,2078.3,1.20290622]
[1773360621227,0.47128813,2078.7,2078.2,0.001]
[1773360621430,0.47128813,2078.7,2078.2,1.20396278]
[1773360621598,0.47128813,2078.7,2078.2,0.001]
[1773360622636,0.47128813,2078.7,2078.2,1.20395999]
[1773360622840,0.47128813,2078.7,2078.2,0.001]
[1773360623046,0.46928813,2078.5,2078.2,0.001]
[1773360625412,0.47128813,2078.7,2078.2,0.001]
[1773360625606,0.47128813,2078.7,2078.2,0.45859104]
[1773360626631,0.47128813,2078.7,2078.3,0.04811624]
[1773360627225,0.47128813,2078.7,2078.2,0.001]
[1773360627534,0.46928813,2078.5,2078.2,0.001]
[1773360632117,0.46928813,2078.5,2078.4,0.001]
[1773360632528,0.47128813,2078.5,2078.4,0.001]
[1773360633110,0.46928813,2078.6,2078.4,0.001]
[1773360633311,0.002,2078.7,2078.4,0.45859104]
[1773360633912,0.46928813,2079.2,2078.5,0.45759104]
[1773360634142,1.67167904,2079.2,2078.6,1.66032364]
[1773360634836,0.46928813,2079.2,2078.6,1.66032364]
[1773360635135,1.67150285,2079.5,2078.7,0.45759104]
[1773360635334,1.67154332,2079.5,2078.7,0.45759104]
[1773360635948,0.46928813,2079.4,2078.6,1.66032364]
[1773360636254,1.67154332,2079.5,2078.9,0.45759104]
[1773360637262,0.46928813,2079.8,2078.9,0.45759104]
[1773360638261,0.46928813,2079.6,2078.6,0.45759104]
[1773360638416,0.46928813,2079.6,2078.7,0.45759104]
[1773360638923,0.46928813,2079.6,2078.7,0.50569802]
[1773360639305,0.46928813,2079.6,2078.7,0.45759104]
[1773360640314,0.46928813,2079.6,2078.7,1.7083489]
[1773360640315,0.46928813,2079.4,2078.7,1.7083489]
[1773360641218,0.46928813,2079.4,2078.8,0.45759104]
[1773360641518,0.46928813,2079.4,2078.7,1.25075786]
[1773360641724,0.46928813,2079.4,2078.7,1.20265088]
[1773360642146,1.20221207,2079.5,2078.9,1.20255904]
[1773360642350,5.27813641,2079.6,2079.0,0.45759104]
[1773360642351,1.67147885,2079.6,2079.0,0.45759104]
[1773360643065,1.20219072,2079.6,2079.0,0.45759104]
[1773360643363,1.66673733,2079.8,2079.0,0.45759104]
[1773360644554,1.66673099,2079.8,2079.2,0.47720943]
[1773360644871,1.66673173,2079.8,2079.2,0.47720943]
[1773360645235,1.787,2080.3,2079.1,0.47720943]
[1773360645236,1.20177349,2080.3,2079.1,0.47720943]
[1773360645453,5.58749628,2080.4,2079.0,3.51616633]
[1773360645454,0.78052076,2080.4,2079.7,0.47720943]
[1773360645637,1.98221856,2080.4,2079.7,0.47720943]
[1773360645865,1.98222306,2080.4,2079.7,0.47720943]
[1773360646241,2.19244492,2080.4,2079.7,0.47720943]
[1773360646458,1.98222306,2080.4,2079.7,0.47720943]
[1773360646658,0.01201622,2080.5,2079.9,0.47720943]
[1773360646878,6.60540162,2081.0,2079.8,1.20203865]
[1773360646879,0.21022186,2081.7,2080.4,0.47720943]
[1773360647170,0.21022186,2081.2,2080.4,0.47720943]
[1773360647341,0.21022186,2080.9,2080.0,0.47720943]
[1773360647860,1.777,2081.0,2080.0,0.47720943]
[1773360648169,2.31370504,2081.4,2079.7,1.67927916]
[1773360648170,0.002,2079.9,2079.7,1.67927916]
[1773360648358,0.21222186,2081.1,2079.8,0.47720943]
[1773360648559,1.20140323,2080.9,2079.9,1.20198086]
[1773360648741,1.41362509,2080.9,2080.0,0.47720943]
[1773360649575,0.21222186,2081.1,2080.0,0.47720943]
[1773360650053,0.21222186,2080.9,2080.0,0.47720943]
[1773360650258,0.21222186,2080.8,2080.0,0.47720943]
[1773360650853,1.20151871,2080.7,2080.0,1.67909994]
[1773360651053,1.20151871,2080.7,2080.0,0.47720943]
[1773360651248,1.20151871,2080.7,2080.0,1.67908788]
[1773360651451,1.20151871,2080.7,2080.1,0.456104]
[1773360651970,1.2013455,2081.0,2080.1,0.456104]
[1773360652970,1.2013455,2081.0,2080.2,1.65791151]
[1773360653173,0.21222186,2080.9,2080.2,0.456104]
[1773360654469,1.2013455,2081.0,2080.2,0.456104]
[1773360655047,1.41351043,2081.1,2080.3,0.456104]
[1773360655251,1.20128857,2081.1,2080.3,0.456104]
[1773360655462,4.80502079,2081.2,2080.3,0.456104]
[1773360655661,1.20127553,2081.2,2080.3,0.456104]
[1773360656788,1.41327879,2081.5,2080.3,0.456104]
[1773360656985,1.41327879,2081.5,2080.5,0.456104]
[1773360657750,1.20105693,2081.5,2080.5,0.456104]
[1773360658656,1.23082616,2082.0,2081.2,0.50517138]
[1773360658957,4.80334874,2081.9,2081.2,0.50517138]
[1773360659757,1.20082616,2081.9,2081.3,0.50517138]
[1773360659968,0.03,2082.0,2081.3,0.50517138]
[1773360660167,1.23078096,2082.0,2081.4,0.49315816]
[1773360660681,1.23078096,2082.0,2081.1,0.49916477]
[1773360660682,1.23245141,2082.0,2081.1,0.49916477]
[1773360661063,1.23245141,2082.0,2081.2,0.49916477]
[1773360661263,0.002,2081.3,2080.9,0.49916477]
[1773360662950,0.002,2081.3,2080.9,1.70055533]
[1773360663353,1.20094153,2081.7,2081.0,0.49816477]
[1773360663557,1.20082616,2081.9,2081.0,0.49816477]
[1773360663883,1.20449661,2081.9,2081.0,0.49816477]
[1773360664757,0.00367045,2081.8,2081.0,0.49816477]
[1773360665868,0.00367045,2081.8,2081.0,1.69950647]
[1773360666263,0.00367045,2081.8,2081.0,1.69948824]
[1773360667197,0.00367045,2081.8,2081.0,0.49816477]
[1773360667486,0.00367045,2081.8,2081.0,1.69950795]
[1773360667655,0.00367045,2081.8,2081.0,0.49816477]
[1773360668258,0.00367045,2081.8,2081.0,1.69948063]
[1773360668459,0.00367045,2081.8,2081.0,1.20131586]
[1773360668660,0.00367045,2081.8,2081.1,0.47922537]
[1773360669791,0.03,2082.0,2081.2,0.47922537]
[1773360670685,0.03,2082.0,2081.4,0.47922537]
[1773360670686,1.2307739,2082.0,2081.4,0.47922537]
[1773360671269,1.20069105,2082.2,2081.4,0.47922537]
[1773360671480,4.80223575,2082.4,2081.4,0.47922537]
[1773360671689,1.20053784,2082.4,2081.5,0.47922537]
[1773360672687,1.20053784,2082.4,2081.7,0.47922537]
[1773360672893,1.24208708,2082.4,2081.7,0.47922537]
[1773360674058,0.47584335,2082.3,2081.4,0.456104]
[1773360674965,1.20065315,2082.2,2081.5,0.456104]
[1773360675357,0.002,2082.2,2081.5,0.456104]
[1773360676893,0.002,2082.2,2081.1,0.457104]
[1773360676894,0.47584335,2082.0,2081.1,0.457104]
[1773360677068,0.47584335,2081.9,2081.1,0.001]
[1773360677469,2.73652388,2081.9,2081.1,0.001]
[1773360677669,0.47584335,2081.8,2081.1,0.001]
[1773360679067,1.20094153,2081.7,2081.1,0.001]
[1773360679492,1.67678488,2081.7,2081.1,0.001]
[1773360679692,1.20094153,2081.7,2081.1,0.001]
[1773360679998,0.47584335,2081.6,2081.1,0.001]
[1773360681077,1.20105693,2081.5,2081.1,0.001]
[1773360682895,1.69855382,2081.5,2081.1,0.001]
[1773360684310,0.49749689,2081.4,2081.1,0.001]
[1773360685016,0.49749689,2081.4,2080.5,0.01201322]
[1773360685319,0.49749689,2081.0,2080.5,0.01201322]
[1773360686293,1.20094153,2081.7,2081.0,0.49291736]
[1773360686610,0.49749689,2081.6,2081.0,0.49291736]
[1773360688190,1.20105693,2081.5,2081.0,0.49291736]
[1773360688900,1.20105693,2081.5,2080.6,0.49291736]
[1773360688901,1.69855382,2081.5,2080.6,0.49291736]
[1773360689223,0.49749689,2081.4,2080.7,0.49291736]
[1773360689895,0.49749689,2081.4,2081.0,0.001]
[1773360690090,0.49749689,2081.4,2080.7,0.49391736]
[1773360690308,1.20117234,2081.3,2080.8,1.20146097]
[1773360690520,0.49749689,2081.3,2080.7,1.2024766]
[1773360690691,0.49749689,2081.3,2080.7,1.69539396]
[1773360691194,0.49749689,2081.3,2080.7,0.49391736]
[1773360691387,0.49749689,2081.3,2080.7,1.6954352]
[1773360691589,0.49749689,2081.3,2080.8,0.04805843]
[1773360691820,0.49749689,2081.3,2080.7,1.74349594]
[1773360692427,1.20123005,2081.2,2080.7,1.74349594]
[1773360692600,1.20123005,2081.2,2080.7,1.6954352]
[1773360692801,1.69872694,2081.2,2080.7,0.001]
[1773360693514,1.69872694,2081.2,2080.7,1.20251295]
[1773360694900,1.69872694,2081.2,2080.7,0.001]
[1773360695226,1.69873308,2081.2,2080.7,0.001]
[1773360695840,0.49749689,2081.4,2080.8,0.49291736]
[1773360696122,0.49749689,2081.4,2080.7,0.001]
[1773360696497,0.49749689,2081.4,2080.7,0.5419781]
[1773360696724,1.20086516,2081.9,2081.2,0.49291736]
[1773360698526,5.30277535,2082.0,2081.3,0.49291736]
[1773360698527,0.002,2082.0,2081.3,0.49291736]
[1773360698881,1.200634,2082.3,2081.5,0.49291736]
[1773360699318,1.69813089,2082.3,2081.5,0.49291736]
[1773360699498,0.49749689,2082.3,2081.5,0.49291736]
[1773360699698,1.20055912,2082.4,2081.5,0.49291736]
[1773360700799,4.80204492,2082.5,2081.7,0.49291736]
[1773360701929,3.67600755,2082.6,2081.7,0.49291736]
[1773360702134,3.17850067,2082.6,2081.8,0.49291736]
[1773360702329,0.17705771,2082.6,2081.8,0.49291736]
[1773360703030,0.17705771,2082.6,2082.0,0.48417733]
[1773360703213,1.20013441,2083.1,2082.1,0.48417733]
[1773360703609,0.45538312,2083.0,2082.1,0.48417733]
[1773360704234,0.002,2082.4,2082.1,0.48417733]
[1773360704739,0.002,2082.4,2081.9,0.48417733]
[1773360704943,0.002,2082.4,2081.5,0.48417733]
[1773360705235,0.45738312,2082.4,2081.5,0.48417733]
[1773360705550,0.45738312,2082.4,2082.1,0.01200421]
[1773360705840,0.002,2082.4,2082.1,0.01200421]
[1773360706356,0.002,2082.4,2081.8,0.48417733]
[1773360707737,0.002,2082.4,2081.9,1.68500349]
[1773360707914,0.002,2082.4,2082.0,0.48417733]
[1773360708543,0.45538312,2082.7,2082.0,0.48417733]
[1773360708843,0.45538312,2082.7,2081.8,1.68505904]
[1773360709036,0.45538312,2082.7,2081.9,0.48417733]
[1773360709340,0.45538312,2082.7,2081.9,0.53221037]
[1773360709709,0.45538312,2082.7,2081.9,0.48417733]
[1773360709914,0.45538312,2082.7,2082.1,0.48417733]
[1773360709915,1.65577073,2082.7,2082.1,0.48417733]
[1773360710242,0.45538312,2082.6,2081.9,1.68498081]
[1773360710539,0.45538312,2082.6,2081.9,0.48417733]
[1773360711012,0.45538312,2082.6,2081.9,1.68500079]
[1773360712025,1.65583937,2082.6,2081.9,1.68500079]
[1773360712440,1.65583937,2082.6,2081.9,1.67297555]
[1773360712638,0.45678322,2082.5,2081.9,1.67297555]
[1773360712847,0.45678322,2082.5,2081.9,1.72100859]
[1773360713745,1.20048001,2082.6,2082.0,0.45854123]
[1773360714038,0.45678322,2082.7,2082.1,1.70728048]
[1773360714225,1.65715359,2082.7,2082.1,1.70728048]
[1773360714422,0.45678322,2082.6,2082.0,1.20072171]
[1773360715134,0.45678322,2082.6,2082.0,1.65926294]
[1773360715939,0.45678322,2082.6,2082.0,0.45854123]
[1773360716240,1.20048019,2082.5,2082.0,0.45854123]
[1773360716443,1.65726341,2082.5,2081.9,1.20081357]
[1773360716945,1.65726341,2082.5,2081.9,1.6593548]
[1773360717644,1.65726341,2082.5,2081.9,1.24885433]
[1773360717836,1.65726341,2082.5,2082.0,0.45854123]
[1773360718236,0.002,2082.4,2082.0,1.65927271]
[1773360718747,0.45878322,2082.4,2081.7,1.65944165]
[1773360719060,0.45878322,2082.4,2081.6,1.65949229]
[1773360719367,0.45878322,2082.4,2081.6,1.65952905]
[1773360719678,0.45878322,2082.4,2081.6,0.45854123]
[1773360720050,0.45878322,2082.4,2081.4,0.45854123]
[1773360720252,0.45678322,2082.1,2081.2,1.65974893]
[1773360720765,0.45678322,2082.1,2081.3,0.50658812]
[1773360721272,0.45678322,2082.1,2081.4,0.45854123]
[1773360721565,0.45678322,2082.1,2081.5,0.04804227]
[1773360721729,0.45678322,2082.1,2081.5,0.45854123]
[1773360722226,0.002,2082.4,2081.7,0.45854123]
[1773360723340,0.45878322,2082.4,2081.7,0.45854123]
[1773360723754,0.45678322,2082.1,2081.0,0.45854123]
[1773360724069,0.45678322,2082.1,2081.1,0.45854123]
[1773360724572,0.45678322,2081.9,2081.2,1.65977128]
[1773360725170,0.45678322,2081.9,2081.0,1.65984653]
[1773360725541,0.45678322,2081.9,2081.1,0.45854123]
[1773360726450,1.20088385,2081.8,2081.0,1.2013053]
[1773360726651,0.45678322,2081.7,2081.0,1.2013053]
[1773360728937,1.65778245,2081.6,2081.0,1.2013053]
[1773360729159,0.45678322,2081.5,2080.9,1.66091754]
[1773360729861,1.65778245,2081.6,2080.9,1.66091754]
[1773360730048,1.65778245,2081.6,2081.0,0.45854123]
[1773360730370,0.45678322,2081.6,2081.0,0.45854123]
[1773360731139,1.65783423,2081.6,2081.1,1.20128778]
[1773360731640,0.45678322,2081.5,2081.1,1.20128778]
[1773360732243,0.45678322,2081.5,2081.0,4.80535009]
[1773360732244,0.45678322,2081.5,2080.7,0.001]
[1773360732457,0.45678322,2081.5,2081.2,0.001]
[1773360732638,0.45678322,2081.5,2080.7,1.20251447]
[1773360733039,0.45678322,2081.5,2081.0,0.001]
[1773360733556,0.45678322,2081.3,2081.0,0.001]
[1773360733766,0.45678322,2081.3,2080.7,0.001]
[1773360734442,0.45678322,2081.1,2080.7,0.001]
[1773360735344,1.2013455,2081.0,2080.7,0.001]
[1773360736062,1.65812872,2081.0,2080.7,0.001]
[1773360736570,1.802,2081.4,2080.7,0.001]
[1773360736740,3.00314399,2081.4,2080.7,0.45954123]
[1773360737353,5.26115765,2081.5,2080.9,1.20140323]
[1773360737354,0.45678322,2081.5,2080.9,1.20140323]
[1773360737576,1.65786519,2081.5,2080.9,1.65994446]
[1773360738071,0.45678322,2081.4,2080.9,1.20140323]
[1773360738665,0.45678322,2081.8,2081.0,0.45854123]
[1773360739757,1.65767701,2081.8,2081.1,1.65982901]
[1773360740155,1.65759801,2082.0,2081.2,0.45854123]
[1773360740455,1.65755582,2082.0,2081.2,0.45854123]
[1773360740772,0.49742879,2081.9,2081.1,1.20128778]
[1773360741073,0.49742879,2081.9,2081.0,1.66236128]
[1773360741248,0.49742879,2081.9,2081.0,1.66236487]
[1773360741447,0.49742879,2081.9,2081.1,0.46106167]
[1773360742354,1.69825953,2081.9,2081.2,1.66229172]
[1773360742557,1.69825613,2081.9,2081.2,1.66229172]
[1773360742958,0.49742879,2081.8,2081.2,1.66229172]
[1773360744074,1.20082734,2081.9,2081.3,0.46106167]
[1773360744253,1.69824219,2082.0,2081.3,0.46106167]
[1773360744949,0.49742879,2082.0,2081.4,1.6621763]
[1773360746049,1.69823776,2082.0,2081.4,1.6621763]
[1773360746251,0.49742879,2081.9,2081.0,0.46106167]
[1773360747153,0.002,2081.6,2081.0,1.66236218]
[1773360747768,0.49942879,2081.6,2081.0,1.66236218]
[1773360748951,0.49942879,2081.6,2081.0,1.20130051]
[1773360749473,1.69848572,2081.5,2080.9,1.20240323]
[1773360749675,0.49742879,2081.4,2080.9,1.20240323]
[1773360750482,1.20105693,2081.5,2081.0,0.46106167]
[1773360750975,5.30348954,2081.6,2081.0,0.46106167]
[1773360750976,0.49942879,2081.6,2081.0,0.46106167]
[1773360751198,1.20300249,2081.6,2081.0,0.46106167]
[1773360752081,1.20300249,2081.6,2081.1,1.20128778]
[1773360752451,0.002,2081.6,2081.1,1.66234945]
[1773360752785,0.49942879,2081.6,2081.1,1.20128778]
[1773360752953,0.49942879,2081.6,2081.0,1.20129961]
[1773360753453,0.49942879,2081.6,2080.9,1.66344465]
[1773360753659,4.80375705,2082.0,2080.9,1.66344465]
[1773360753660,0.52434258,2084.9,2081.1,0.46106167]
[1773360753888,0.02691379,2084.9,2082.1,2.30699109]
[1773360754067,0.02691379,2084.9,2081.2,2.53051468]
[1773360754068,0.1650535,2086.7,2081.2,2.53051468]
[1773360754071,0.22120364,2086.0,2084.9,0.46106167]
[1773360754280,0.49742879,2086.6,2085.1,0.46106167]
[1773360754466,1.36314449,2086.7,2085.0,6.37498218]
[1773360754467,0.1650535,2086.7,2086.2,2.723899]
[1773360754683,0.1650535,2086.7,2085.6,1.26221074]
[1773360754684,1.36313682,2086.7,2086.3,1.71123716]
[1773360754881,0.49742879,2086.6,2086.0,1.71123716]
[1773360755069,0.49742879,2086.6,2085.7,1.71123716]
[1773360755686,2.30699109,2086.5,2086.1,1.71123716]
[1773360756070,1.19817876,2086.5,2085.4,0.46106167]
[1773360756570,1.1981333,2086.6,2085.6,0.46106167]
[1773360756771,1.1981333,2086.6,2085.8,0.46106167]
[1773360757015,0.1650535,2086.7,2085.9,0.46106167]
[1773360757371,0.1650535,2086.7,2086.2,0.46106167]
[1773360757597,1.36312015,2086.7,2085.8,0.46106167]
[1773360757799,0.1650535,2086.7,2085.8,0.46106167]
[1773360758172,1.19771954,2087.3,2086.3,0.46106167]
[1773360758372,2.30699109,2087.1,2085.8,0.46106167]
[1773360758574,2.30699109,2086.8,2085.8,0.46106167]
[1773360758775,0.49742879,2087.0,2085.8,0.46106167]
[1773360759033,0.49742879,2087.8,2086.3,0.46106167]
[1773360759183,2.30699109,2087.3,2086.3,0.46106167]
[1773360759580,0.49742879,2087.2,2085.9,0.46106167]
[1773360759807,2.30699109,2087.0,2085.9,0.46106167]
[1773360759980,7.59438012,2087.8,2086.6,0.46106167]
[1773360760180,7.59438012,2087.8,2086.3,2.53051468]
[1773360760181,0.49742879,2087.7,2086.4,0.46106167]
[1773360760982,1.1974327,2087.8,2086.6,0.46106167]
[1773360761388,4.78973081,2087.9,2086.7,0.46106167]
[1773360761389,1.19741173,2087.9,2086.7,0.46106167]
[1773360761584,2.54317628,2088.5,2087.0,0.46106167]
[1773360761585,1.197146,2088.3,2087.0,0.46106167]
[1773360761790,1.19696266,2088.7,2087.5,2.75587856]
[1773360762021,0.002,2087.3,2086.7,0.46106167]
[1773360762316,0.002,2087.3,2086.8,0.46106167]
[1773360762816,0.002,2087.3,2086.4,0.46106167]
[1773360763020,0.002,2087.3,2086.4,2.75587856]
[1773360763336,0.002,2087.3,2086.8,0.48559618]
[1773360763488,1.19730086,2088.1,2086.8,0.48559618]
[1773360763689,1.19708868,2088.4,2087.1,0.48559618]
[1773360764101,1.19720333,2088.2,2087.1,1.68341018]
[1773360764433,7.08308159,2088.5,2087.2,0.48559618]
[1773360764590,1.19703136,2088.6,2087.2,0.48559618]
[1773360764591,1.19697404,2088.6,2087.2,0.48559618]
[1773360764922,1.19697404,2088.6,2087.4,0.48559618]
[1773360764923,3.49179093,2088.6,2087.4,0.48559618]
[1773360765123,1.19697404,2088.6,2087.5,0.48559618]
[1773360765495,1.19697404,2088.6,2087.2,0.48559618]
[1773360765927,1.65178369,2088.6,2087.2,0.48559618]
[1773360766104,1.197146,2088.3,2087.2,0.48559618]
[1773360766300,2.74962654,2088.2,2086.7,0.48559618]
[1773360766530,0.45480965,2088.1,2086.8,0.48559618]
[1773360766726,1.197146,2088.3,2086.9,0.48559618]
[1773360767206,1.6519379,2088.4,2087.2,0.48559618]
[1773360767404,1.65172639,2088.7,2087.3,0.48559618]
[1773360768430,2.74962654,2088.5,2087.3,0.48559618]
[1773360768727,1.19691674,2088.7,2087.4,0.48559618]
[1773360768914,3.74204372,2088.8,2087.5,0.48559618]
[1773360769094,3.74204372,2088.8,2087.6,0.48559618]
[1773360769294,2.54517628,2088.8,2087.6,0.48559618]
[1773360769602,1.19688485,2088.8,2087.6,0.48559618]
[1773360769924,1.19674485,2089.0,2087.8,0.48559618]
[1773360770329,0.45480965,2089.0,2087.8,0.46158839]
[1773360770630,2.29481689,2088.8,2087.8,0.46158839]
[1773360770828,2.7543958,2088.8,2087.6,1.19754464]
[1773360771135,4.78678317,2089.1,2087.7,0.46677896]
[1773360771432,1.19668756,2089.1,2087.8,0.46677896]
[1773360771631,2.7543958,2088.7,2087.4,0.46677896]
[1773360771834,0.45957891,2088.6,2087.0,0.46677896]
[1773360772029,0.45957891,2088.6,2087.1,0.04791337]
[1773360772030,2.7543958,2088.3,2087.1,0.04791337]
[1773360772329,1.65655295,2088.6,2087.3,1.6644985]
[1773360772530,0.45957891,2088.4,2087.3,0.46677896]
[1773360772932,0.45957891,2088.4,2087.1,1.19783431]
[1773360773296,0.45957891,2088.2,2086.9,1.66468933]
[1773360773704,0.45957891,2088.2,2087.0,0.04791566]
[1773360774336,1.19726066,2088.1,2087.0,1.24576531]
[1773360774838,1.19726066,2088.1,2087.0,1.71254427]
[1773360775140,1.19703136,2088.5,2087.2,0.46677896]
[1773360775318,3.95142716,2088.5,2087.3,0.04790878]
[1773360775634,0.002,2088.0,2087.2,0.46677896]
[1773360776513,0.002,2088.0,2087.3,1.19771954]
[1773360776815,0.002,2088.0,2087.0,0.001]
[1773360776816,0.002,2088.0,2087.0,1.19885243]
[1773360777138,0.002,2088.0,2087.0,1.66563139]
[1773360777739,0.002,2088.0,2087.1,0.46677896]
[1773360778239,0.002,2088.0,2087.4,0.46677896]
[1773360778437,0.002,2088.0,2087.5,1.66438375]
[1773360778641,0.002,2088.0,2087.6,0.46677896]
[1773360778838,0.002,2088.0,2087.5,1.19760479]
[1773360779142,0.002,2088.0,2087.2,1.66454257]